Cogmind - Beta 15 @@@ ROGUE MODE // 2025.07.03 @ 20:32:48 Player: LameThyst Result: Destroyed self with Missile Launcher Performance ------------- Evolutions (2) 1000 Regions Visited (6) 1200 Robots Destroyed (55) 275 Value Destroyed (1338) 1338 Prototype IDs (33) 660 Alien Tech Used (0) 0 Bonus (300) 300 TOTAL SCORE: 4773 Bonus ------- Aligned with FarCom 300 Cogmind --------- Core Integrity 0/550 Matter 62/300 Energy 150/150 System Corruption 0% Temperature Danger (453) Movement Core (1050) Ox20 Location -8/Storage Parts ------- > --- POWER (1) -------- Light Angular Momentum Engine > --- PROPULSION (5) --- (None) > --- UTILITY (3) ------ Improved Heat Sink High-capacity Storage Unit Signal Interpreter > --- WEAPON (2) ------- Heavy Particle Cannon Missile Launcher > --- INVENTORY (20) --- Light Nuclear Core Light Nuclear Core Titanium Leg Compact Wheel Medium Battery (150) Large Matter Pod (150) Structural Scanner Hardened Light Armor Plating Insulated Plating PSU Rigger Improved EM Shotgun Precision Beam Rifle Advanced Beam Rifle Ion Cannon Improved Assault Rifle Enhanced Autogun Light Cannon Light Cannon Datajack Scythe Peak State ------------ > --- POWER ------------ Light Nuclear Core > --- PROPULSION ------- Titanium Leg Titanium Leg Titanium Leg Titanium Leg Titanium Leg > --- UTILITY ---------- High-capacity Storage Unit Signal Interpreter PSU Rigger > --- WEAPON ----------- Ion Cannon Enhanced Autogun > --- INVENTORY -------- Improved Ion Engine Titanium Leg Compact Wheel Improved Heat Sink Medium Battery Large Matter Pod Structural Scanner Hardened Light Armor Plating Insulated Plating EM Shotgun Precision Beam Rifle Advanced Beam Rifle Heavy Particle Cannon Improved Assault Rifle Light Cannon Light Cannon Missile Launcher Datajack Scythe [Rating: 39] Favorites ----------- Power Ion Engine Engine Ion Engine Power Core Nuclear Core Propulsion Titanium Leg Treads Light Treads Leg Titanium Leg Wheel Compact Wheel Utility Signal Interpreter Device Structural Scanner Storage High-capacity Storage Unit Processor Signal Interpreter Protection Light Armor Plating Weapon Light Cannon Energy Gun EM Pulse Gun Energy Cannon Beam Cannon Ballistic Gun Enhanced Autogun Ballistic Cannon Light Cannon Launcher Missile Launcher Build | -11 -10 -10 -10 -9 -8 -8 ------- Run | Yrd Mat Min Exi Min Mat Sto Slots Evolved 4 | . . . . . 4 . Power . | . . . . . . . Propulsion 3 | . . . . . 3 . Utility 1 | . . . . . 1 . Weapon . | . . . . . . . Parts Attached 56 | 8 14 . 1 . 6 27 Power 12 | 2 2 . . . 1 7 Engine 7 | 2 2 . . . 1 2 Core 5 | . . . . . . 5 Reactor . | . . . . . . . Propulsion 15 | 2 6 . . . 2 5 Treads 2 | . 2 . . . . . Leg 12 | 2 3 . . . 2 5 Wheel 1 | . 1 . . . . . Hover . | . . . . . . . Flight . | . . . . . . . Utility 11 | 1 4 . 1 . 1 4 Device 3 | . 1 . . . . 2 Storage 4 | 1 2 . 1 . . . Processor 1 | . 1 . . . . . Hackware . | . . . . . . . Protection 3 | . . . . . 1 2 Artifact . | . . . . . . . Weapon 18 | 3 2 . . . 2 11 Energy Gun 5 | 1 . . . . . 4 Energy Cannon 4 | . 1 . . . 2 1 Ballistic Gun 6 | 2 . . . . . 4 Ballistic Cannon 1 | . 1 . . . . . Launcher 2 | . . . . . . 2 Special Weapon . | . . . . . . . Impact Weapon . | . . . . . . . Slashing Weapon . | . . . . . . . Piercing Weapon . | . . . . . . . Special Melee Weapon . | . . . . . . . Unidentified Prototypes 8 | . . . . . . 8 Parts Lost 6 | . . . . . . 6 Power 1 | . . . . . . 1 Propulsion 5 | . . . . . . 5 Utility . | . . . . . . . Weapon . | . . . . . . . Highest Loss Streak 6 | . . . . . . 6 To Critical Strikes . | . . . . . . . Average Backups 17 | 3 9 15 15 17 19 19 Power 2 | . 1 2 2 2 2 1 Propulsion 2 | 2 3 3 3 3 . 1 Utility 5 | . 1 4 4 6 6 6 Weapon 6 | . 3 5 5 5 7 8 Tool/Special . | . . . . . . . Unused Backups 21 | . 3 . 1 . 1 16 Power 3 | . . . . . . 3 Propulsion 1 | . 1 . . . . . Utility 8 | . 2 . 1 . . 5 Weapon 8 | . . . . . 1 7 Tool/Special 1 | . . . . . . 1 Average Slot Usage (%) 99 | . 98 100 100 100 99 99 Engine 8 | . 14 14 14 14 9 3 Core 2 | . . . . . . 5 Leg 33 | . 20 14 14 14 44 44 Wheel 4 | . 3 14 14 14 . . Device 6 | . 10 . . . 6 8 Storage 10 | . 14 14 14 14 9 9 Processor 9 | . 2 14 14 14 9 9 Energy Cannon 10 | . 11 14 14 14 9 9 Ballistic Gun 4 | . 7 . . . . 7 Ballistic Cannon 6 | . 6 14 14 14 9 . Peak Build Rating 39 | 6 8 8 9 9 19 39 Average Rating 19 | 4 7 8 8 9 18 32 On Entrance 8 | . 6 8 8 9 9 19 Naked Turns . | . . . . . . . Heaviest Build 59 | 14 32 31 51 51 59 59 Greatest Support 85 | 20 40 16 16 16 57 85 Greatest Overweight (x) 3 | . 1 1 3 3 1 1 Average Overweight (x) . | . . 1 2 3 . . Largest Inventory Capacity 20 | 8 15 15 20 20 20 20 Average Capacity 17 | 6 10 15 18 20 20 20 Most Carried 20 | 6 15 15 17 17 20 20 Average Carried 17 | 3 9 15 15 17 19 19 Final Capacity 20 | 8 15 15 20 20 20 20 Final Carried 20 | 6 15 15 17 17 20 20 Class Distribution -------------------- 100% | Mutant Dominant Class ---------------- Mutant | -10/Materials Mutant | -10/Mines Mutant | -10/Exiles Mutant | -9/Mines Mutant | -8/Materials Mutant | -8/Storage Resources | -11 -10 -10 -10 -9 -8 -8 ----------- Run | Yrd Mat Min Exi Min Mat Sto Matter Collected 1306 | 197 305 . 34 . 166 604 Remotely . | . . . . . . . Salvage Created 1714 | . 459 . . . 153 1102 Parts 122 | . 35 . . . 16 71 Haulers Intercepted 4 | . 2 . . . . 2 Recyclers Shooed 2 | . 2 . . . . . Parts Field Recycled . | . . . . . . . Retrieved Matter . | . . . . . . . Parts Self-Destructed . | . . . . . . . Prevented . | . . . . . . . Kills | -11 -10 -10 -10 -9 -8 -8 ------- Run | Yrd Mat Min Exi Min Mat Sto Combat Hostiles Destroyed 38 | . 10 . . . 7 21 Guns 8 | . 4 . . . . 4 Cannons 21 | . 4 . . . 7 10 AOE 8 | . 2 . . . . 6 Classes Destroyed 11 | . 5 . . . 1 5 Worker 4 | . . . . . . 4 Builder 2 | . . . . . . 2 Hauler 4 | . 2 . . . . 2 Recycler 1 | . 1 . . . . . Mechanic 1 | . . . . . . 1 Operator 1 | . . . . . . 1 Watcher 4 | . 1 . . . 1 2 Swarmer 16 | . 6 . . . 6 4 Grunt 17 | . 4 . . . . 13 Duelist 1 | . . . . . . 1 Sentry 4 | . . . . . 1 3 Best Kill Streak 14 | . 5 . . . 3 14 Combat Bots Only 7 | . 5 . . . 3 7 Max Kills in Single Turn 4 | . 2 . . . 1 4 Gunslinging . | . . . . . . . Exploded 2 | . 2 . . . . 2 Melee . | . . . . . . . Uniques/NPCs Destroyed . | . . . . . . . Combat | -11 -10 -10 -10 -9 -8 -8 -------- Run | Yrd Mat Min Exi Min Mat Sto Hostile Shots Fired 220 | . 43 . . . 53 124 Missed 39 | . 10 . . . 11 18 Hits 181 | . 33 . . . 42 106 Melee 1 | . . . . . . 1 Projectile 180 | . 33 . . . 42 105 Critical Strikes 4 | . 1 . . . . 3 Damage Taken 2605 | . 333 . . . 342 1930 Core 619 | . 66 . . . 30 523 Absorbed by Shields . | . . . . . . . Core Remaining (%) 86 | 100 . . . 73 . . Volleys Fired 140 | . 26 . 4 . 33 77 Largest 2 | . 2 . 2 . 2 2 Hottest 135 | . 90 . 90 . 105 135 Shots Fired 273 | . 52 . 8 . 66 147 Gun 93 | . 35 . . . . 58 Cannon 173 | . 17 . 8 . 66 82 Launcher 7 | . . . . . . 7 Special . | . . . . . . . Kinetic 128 | . 26 . 4 . 33 65 Thermal 127 | . 15 . 4 . 33 75 Explosive 7 | . . . . . . 7 Electromagnetic 11 | . 11 . . . . . Robot Hit Streak 11 | . 5 . . . 5 11 Robot Miss Streak 5 | . 2 . . . 4 5 Penetration Max . | . . . . . . . Secondary Targets 1 | . 1 . . . . . Max Gunslinging Chain 1 | . 1 . . . . . Shots Hit Robots 129 | . 28 . . . 22 79 Core Hits 76 | . 17 . . . 11 48 Critical Kills 1 | . . . . . . 1 Critical Parts Destroyed . | . . . . . . . Critical Strikes 3 | . . . . . 2 1 Meltdown 1 | . . . . . . 1 Blast 2 | . . . . . 2 . Melee Attacks . | . . . . . . . Impact . | . . . . . . . Slashing . | . . . . . . . Piercing . | . . . . . . . Sneak Attacks . | . . . . . . . Combat Hostiles . | . . . . . . . Follow-up Attacks . | . . . . . . . Damage Inflicted 3505 | . 541 . . . 490 2474 Guns 801 | . 229 . . . . 572 Cannons 1766 | . 226 . . . 490 1050 Explosions 929 | . 86 . . . . 843 Melee . | . . . . . . . Ramming 9 | . . . . . . 9 Kinetic 973 | . 175 . . . 179 619 Thermal 1594 | . 280 . . . 311 1003 Explosive 843 | . . . . . . 843 Electromagnetic 86 | . 86 . . . . . Impact . | . . . . . . . Slashing . | . . . . . . . Piercing . | . . . . . . . Highest Corruption . | . . . . . . . Average Corruption . | . . . . . . . Corruption Purged . | . . . . . . . Corruption Blocked . | . . . . . . . Overload Shots . | . . . . . . . Overflow Damage 151 | . . . . . 8 143 Projectiles 32 | . . . . . 8 24 Explosions 119 | . . . . . . 119 Melee . | . . . . . . . Knockbacks 5 | . . . . . 5 . Impact . | . . . . . . . Kinetic 4 | . . . . . 4 . Secondary 1 | . . . . . 1 . Self-Inflicted Damage 150 | . 8 . . . . 142 Shots 5 | . 1 . . . . 4 Rammed . | . . . . . . . Targets Rammed 2 | . . . . . . 2 Kicked 2 | . . . . . . 2 Crushed . | . . . . . . . Highest Temperature 690 | . 231 . 120 . 300 690 Average Temperature 131 | . 62 . 63 . 90 174 Received Heat Transfer 951 | . 123 . . . 9 819 Effects 26 | . . . . . 1 25 Shutdowns 5 | . . . . . . 5 Energy Bleed 3 | . . . . . 1 2 Interference 4 | . . . . . . 4 Matter Decay 1 | . . . . . . 1 Short Circuit 2 | . . . . . . 2 Damage (minor) 1 | . . . . . . 1 Damage (major) 7 | . . . . . . 7 Damage (core) 3 | . . . . . . 3 Siege Activations . | . . . . . . . Martial Activations . | . . . . . . . Shielding Activations . | . . . . . . . Robots Disrupted . | . . . . . . . Combat Hostiles . | . . . . . . . Robots Corrupted . | . . . . . . . Combat Hostiles . | . . . . . . . Parts Fried 1 | . . . . . 1 . Impact Corruptions 1 | . . . . . 1 . Robots Melted 1 | . . . . . . 1 Combat Hostiles 1 | . . . . . . 1 Parts Melted 3 | . . . . . . 3 Heat Transferred 2629 | . 557 . . . 518 1554 Parts Sabotaged . | . . . . . . . Parts Stolen . | . . . . . . . Parts Stripped . | . . . . . . . Power Chain Reactions 1 | . 1 . . . . . Alert | -11 -10 -10 -10 -9 -8 -8 ------- Run | Yrd Mat Min Exi Min Mat Sto Maximum Alert Level 1 | . . . . . . 1 Low Security (%) 99 | 100 100 100 . 100 100 99 Level 1 . | . . . . . . . Level 2 . | . . . . . . . Level 3 . | . . . . . . . Level 4 . | . . . . . . . Level 5 . | . . . . . . . High Security . | . . . . . . . Max Security . | . . . . . . . Peak Influence 207 | . 161 11 . . 76 207 Initial 22 | . . 11 . . . 22 Average 30 | . 85 1 . . 11 27 Influence Increases 1180 | . 272 . . . 213 695 Destroy 0b10 Robot/C 760 | . 200 . . . 140 420 Destroy 0b10 Robot/NC 85 | . 20 . . . 5 60 Destroy Leader 166 | . 46 . . . 32 88 Successful Hack 15 | . . . . . 11 4 Disable Machine 60 | . . . . . 15 45 Destroy Structure 64 | . 6 . . . 10 48 Lose Combat Pursuer 30 | . . . . . . 30 Influence Decreases 961 | . 242 30 . . 160 529 Entered New Map 50 | . . 19 . . . 31 Time Decay 861 | . 242 11 . . 160 448 Lost Part 50 | . . . . . . 50 Squads Dispatched 4 | . 1 . . . . 3 Investigation 1 | . . . . . . 1 Extermination . | . . . . . . . Reinforcement 3 | . 1 . . . . 2 Assault . | . . . . . . . Garrison . | . . . . . . . Intercept . | . . . . . . . Searches Triggered . | . . . . . . . Construction Impeded 1 | . . . . . . 1 Haulers Reinforced . | . . . . . . . Active Scanning Responses . | . . . . . . . Cargo Convoy Interrupts . | . . . . . . . Stealth | -11 -10 -10 -10 -9 -8 -8 --------- Run | Yrd Mat Min Exi Min Mat Sto Distress Signals 1 | . . . . . 1 . Communications Jammed . | . . . . . . . Distress Signals . | . . . . . . . Times Spotted 50 | . 15 . . . 10 25 Peak Tracking Total 7 | . 5 . . . 4 7 Tactical Retreats 2 | . . . . . . 2 Traps | -11 -10 -10 -10 -9 -8 -8 ------- Run | Yrd Mat Min Exi Min Mat Sto Traps Triggered . | . . . . . . . Indirectly . | . . . . . . . Trap Hack Attempts . | . . . . . . . Triggered . | . . . . . . . Disarmed . | . . . . . . . Reprogrammed . | . . . . . . . Reused . | . . . . . . . Traps Extracted . | . . . . . . . Installed . | . . . . . . . Triggered . | . . . . . . . Objects Rigged 2 | . . . . . . 2 Exploded 1 | . . . . . . 1 Machines | -11 -10 -10 -10 -9 -8 -8 ---------- Run | Yrd Mat Min Exi Min Mat Sto Machines Disabled 4 | . . . . . 1 3 Max in Single Turn 1 | . . . . . 1 1 Machines Repaired . | . . . . . . . Machines Dismantled . | . . . . . . . Machines Sabotaged . | . . . . . . . Overloaded Fab Kills . | . . . . . . . Hacking | -11 -10 -10 -10 -9 -8 -8 --------- Run | Yrd Mat Min Exi Min Mat Sto Machines Accessed 12 | . 2 . 4 . 2 4 Terminals 8 | . 2 . . . 2 4 Fabricators . | . . . . . . . Repair Stations . | . . . . . . . Recycling Units . | . . . . . . . Scanalyzers . | . . . . . . . Garrison Access . | . . . . . . . Total Hacks 60 | . 2 . 43 . 6 9 Successful 48 | . . . 43 . 3 2 Failed 12 | . 2 . . . 3 7 Catastrophic 5 | . 2 . . . . 3 Database Lockouts . | . . . . . . . Manual 5 | . 1 . 1 . 2 1 Terminals 17 | . 2 . . . 6 9 Fabricators . | . . . . . . . Repair Stations . | . . . . . . . Recycling Units . | . . . . . . . Scanalyzers . | . . . . . . . Garrison Access . | . . . . . . . Terminal Hacks 48 | . . . 43 . 3 2 Record 42 | . . . 42 . . . Prototype ID Bank 1 | . . . . . . 1 Branch Access Points 1 | . . . . . 1 . Emergency Access Points 1 | . . . . . 1 . Locate Traps 1 | . . . . . . 1 Registered Components 1 | . . . . . 1 . Proto ID Catalog 1 | . . . 1 . . . Fabricator Hacks . | . . . . . . . Repair Station Hacks . | . . . . . . . Recycling Unit Hacks . | . . . . . . . Scanalyzer . | . . . . . . . Garrison Access Hacks . | . . . . . . . Unauthorized Hacks . | . . . . . . . Terminals . | . . . . . . . Fabricators . | . . . . . . . Repair Stations . | . . . . . . . Recycling Units . | . . . . . . . Scanalyzers . | . . . . . . . Garrison Access . | . . . . . . . Data Cores Recovered . | . . . . . . . Used . | . . . . . . . Hacking Detections 8 | . 2 . . . 2 4 Full Trace Events 1 | . . . . . . 1 Feedback Events . | . . . . . . . Feedback Blocked . | . . . . . . . Robot Schematics Acquired . | . . . . . . . Robots Built . | . . . . . . . Authchips . | . . . . . . . Time . | . . . . . . . Total Robot Build Rating . | . . . . . . . Part Schematics Acquired . | . . . . . . . Parts Built . | . . . . . . . Authchips . | . . . . . . . Time . | . . . . . . . Total Part Build Rating . | . . . . . . . Parts Repaired . | . . . . . . . Time . | . . . . . . . Parts Recycled . | . . . . . . . Recycled Matter . | . . . . . . . Retrieved Matter . | . . . . . . . Retrieved Components . | . . . . . . . Parts Scanalyzed . | . . . . . . . Part Schematics Acquired . | . . . . . . . Parts Damaged . | . . . . . . . Bothacking | -11 -10 -10 -10 -9 -8 -8 ------------ Run | Yrd Mat Min Exi Min Mat Sto Used RIF Installer . | . . . . . . . Robots Hacked . | . . . . . . . Non-combat . | . . . . . . . Combat . | . . . . . . . Robot Hacks Applied . | . . . . . . . Relay Couplers Released . | . . . . . . . Fabnet Peak Effective % . | . . . . . . . Robots Rewired . | . . . . . . . Allies Hacked . | . . . . . . . Hacks Repelled . | . . . . . . . Allies | -11 -10 -10 -10 -9 -8 -8 -------- Run | Yrd Mat Min Exi Min Mat Sto Total Allies 2 | . . 2 . . . . Largest Group 2 | . . 2 2 . . . Highest-Rated Group 49 | . . 49 49 . . . Highest-Rated Ally 31 | . . 31 31 . . . Total Orders . | . . . . . . . Ally Attacks . | . . . . . . . Total Damage . | . . . . . . . Kills . | . . . . . . . Allies Corrupted . | . . . . . . . Allies Melted . | . . . . . . . Intel | -11 -10 -10 -10 -9 -8 -8 ------- Run | Yrd Mat Min Exi Min Mat Sto Active Infowar (turns) 2530 | . 437 . . . 788 1305 Structural 2530 | . 437 . . . 788 1305 Robot Analysis Total . | . . . . . . . Derelict Logs Recovered . | . . . . . . . Drone Launches . | . . . . . . . Drone Recoveries . | . . . . . . . Exploration | -11 -10 -10 -10 -9 -8 -8 ------------- Run | Yrd Mat Min Exi Min Mat Sto Turns Passed 4428 | 64 561 147 917 17 1054 1668 Spaces Moved 1850 | 42 346 103 683 10 207 459 Core 7 | 7 . . . . . . Treads 19 | . 19 . . . . . Legs 899 | 35 198 . . . 207 459 Wheels 925 | . 129 103 683 10 . . Hover . | . . . . . . . Flight . | . . . . . . . Fastest Speed 50 | 50 115 115 115 145 122 122 Average Speed 131 | 108 127 115 131 145 151 129 Slowest Speed 200 | 120 190 115 145 145 192 200 Overloaded Moves . | . . . . . . . Propulsion Burnouts . | . . . . . . . Robots Hopped . | . . . . . . . Potential Cave-ins . | . . . . . . . Cave-ins Triggered . | . . . . . . . Exploration Rate (%) 34 | 4 50 26 92 9 21 37 Regions Visited 6 Branch Regions 4 Pre-discovered Areas 1 | . . . 1 . . . Known Exits Taken 5 | . 1 1 1 1 1 . Unknown Exits Taken 1 | 1 . . . . . . Scrap Searched . | . . . . . . . Spaces Dug 3 | . . . . . 2 1 Terrain Destroyed 56 | . 4 . . . 8 44 Melee . | . . . . . . . Projectile 13 | . . . . . 8 5 AOE 43 | . 4 . . . . 39 Terrain Rammed . | . . . . . . . Walls Destroyed . | . . . . . . . Machines Disabled . | . . . . . . . Actions | -11 -10 -10 -10 -9 -8 -8 --------- Run | Yrd Mat Min Exi Min Mat Sto Total 3614 | 57 419 131 692 12 882 1421 Wait 1438 | . 3 29 . 3 621 782 Move 1844 | 41 345 102 682 9 206 459 Hop . | . . . . . . . Pick Up 47 | 7 16 . 3 . 7 14 Fast Attach 23 | 6 2 . . . 2 13 Attach 9 | . 2 . . . 4 3 Detach 10 | . . . . . 2 8 Swap 42 | 2 11 . 1 . 4 24 Drop 57 | 1 14 . 2 . 3 37 Fire 140 | . 26 . 4 . 33 77 Melee . | . . . . . . . Ram . | . . . . . . . Kick 2 | . . . . . . 2 Crush . | . . . . . . . Escape Stasis . | . . . . . . . Rewire . | . . . . . . . Trap 2 | . . . . . . 2 Miscellaneous . | . . . . . . . Route ------- -11/Scrapyard -10/Materials -10/Mines -10/Exiles (discovered 2 exits: *Min x2) -9/Mines -8/Materials (discovered 2 exits: *Sto x2) -8/Storage History --------- Turn | Location | Event 6 | -11/Scrapyard | Discovered new exit (range 15) 65 | -11/Scrapyard | Entered Materials 268 | -10/Materials | Discovered new exit (range 7) 317 | -10/Materials | Build established: Mutant 625 | -10/Materials | Identified exit to Mines 626 | -10/Materials | Entered Mines 721 | -10/Mines | Deemed a non-threat by the Exiles lab entrance 721 | -10/Mines | Discovered new exit (range 5) 725 | -10/Mines | Identified exit to Exiles 773 | -10/Mines | Entered Exiles 773 | -10/Exiles | Accompanied by 2 allies 791 | -10/Exiles | Discovered new exit (range 15) 803 | -10/Exiles | Led the pair of lost Derelicts to a safe place 803 | -10/Exiles | Met 8R-AWN 822 | -10/Exiles | Identified exit to Mines 867 | -10/Exiles | Met EX-HEX 910 | -10/Exiles | Met EX-BIN 952 | -10/Exiles | Aligned with FarCom system 953 | -10/Exiles | Given EX-Vault access code 982 | -10/Exiles | Opened EX-Vault 991 | -10/Exiles | Found PSU Rigger 1024 | -10/Exiles | Warned to stay clear of 0b10 Research branches 1056 | -10/Exiles | Met EX-DEC 1086 | -10/Exiles | Learned location of Zion (-6) 1197 | -10/Exiles | Discovered exit to Mines (range 14) 1306 | -10/Exiles | Visited The Gauntlet 1690 | -10/Exiles | Left Exiles lab with PSU Rigger 1690 | -10/Exiles | Entered Mines 1690 | -9/Mines | Discovered new exit (range 10) 1702 | -9/Mines | Identified exit to Materials 1707 | -9/Mines | Entered Materials 1707 | -8/Materials | Evolved 4 slots: Propulsion x3, Utility x1 1832 | -8/Materials | Identified exit to Storage 2761 | -8/Materials | Entered Storage 4402 | -8/Storage | Core integrity fell below 50% 4411 | -8/Storage | Core integrity fell below 20% 4429 | -8/Storage | Destroyed self with Missile Launcher Last Messages --------------- 04422_ Hvy. Particle Cannon temporarily disabled. 04423_ K-01 Serf collects debris. 04423_ Destroyed Lgt. Assault Rifle. 04423_ S-10 Pest destroyed. 04423_ U-05 Engineer destroyed. 04423_ G-47 Trooper destroyed. 04424_ The unstable cave ceiling collapses. 04425_ S-10 Pest destroyed. 04425_ Titanium Leg destroyed. 04425_ Destroyed Titanium Leg. 04425_ Titanium Leg destroyed. 04425_ Destroyed Titanium Leg. 04426_ K-01 Serf collects debris. 04427_ A-02 Transporter destroyed. 04428_ K-01 Serf collects debris. 04429_ The unstable cave ceiling collapses. 04429_ Destroyed Lgt. Nuclear Core. 04429_ W-25 Informer destroyed. 04429_ K-01 Serf destroyed. Map ----- +----------------------------------------------------+ | ????????????????????????????????????????????????? | | ????????????????????????????????????????????????? | | ????????????????????????????????????????????????? | | ????????????????????????????????????????????????? | | ????????????????????????????????????????????????? | | ????????????????????????????????????????????????? | | ????????????????????????????????????????????????? | | ????????????????????????????????????????????????? | | ????????????????????????????????????????????????? | | ????????????????????????????????????????????????? | | ????????????????????????????????????????????????? | | ????????????????????????????????????? # ????????? | | ????????????????????????????????????? # ????????? | | ??????????????????????# T## ??????? # ?????? | | ??????????????????????#+###+##??????? #####?????? | | ??????????????????????# ######## # ?????? | | ???????????????????????? ##### / ????????? | | ???????????????????????? # ????????? | | ??????????????????? %== # ????????? | | ???????????????????##### =# ????????? | | ???????????????????## =% =%% #?????????? | | ???????????????????## !=!*! #?????????? | | ???????????????????## " %!!k ####?????????? | | ???????????????????## ! [ [= ##?????????????? | | ???????????????????## ! *==!##?????????????? | | ???????????????????## ]@ %[=###########????? | | ???????????????????## * g =%###########????? | | ???????????????????## [ [[+ ##????? | | # ??Y???????? #### # g# ##????? | | #######??????????######### ## ##????? | | ## ##??????????## ##### ## ## ##????? | | ## ##??????????## %*## ##????? | | ## ##??????????## #########[## ##????? | | ## ##??????????### ########## ## ##????? | | ## # ???????????## ##??????## ## ##????? | | ## # ???????????## ###?###### ## ##????? | | ## # ???????????## ###?######+######+#####????? | | ## # ???????????## T##?## T +^^^####????? | | ## + ???????????## #"#?## """"" # # ??????? | | ## ^# ???????????## ###### """"" # # ??????? | | ## *# ???????????## ###### """"" # # ??????? | | # # ##### % / + + ??????? | | # ############### ###### ! ! # # ??????? | | # # # ###### ! # # ??????? | | # # + ##??## # # ??????? | | + + =# #############+## ##??????? | | # # %# ############# ## # ??????? | | # + + + " #########+## # ??????? | | # # # #T#### # # ??????? | | +=!!############### ######]""" # # ??????? | +----------------------------------------------------+ Best States ------------- Heat Dissipation 45 Energy Generation 18 Energy Capacity 265 Matter Stores 300 Matter Capacity 300 Sight Range 16 Terrain Scan Density 10 Armor Coverage 150 Evasion (%) 55 Recoil Reduction 2 Item Schematics ----------------- None Robot Schematics ------------------ None Fabricated ------------ Nothing Repaired ---------- Nothing Alien Tech Used ----------------- None Achievements -------------- None Challenges ------------ None Game ------ Seed ColdBraceJets Manual? 0 Play Time 00:52:56 Cumulative 51.7 hours Start 2025.07.03 @ 19:42:25 End 2025.07.03 @ 20:32:48 Sessions 1 Manual Loads 0 Difficulty Rogue Special Mode None Game No. 59 Rogue 59 Adventurer 0 Explorer 0 Win Type - Total 0 Types 0/0/0/0/0/0/0/0/0/0 Lore% 20 Gallery% 35 Achievement% 28 Wizard Run 0 Options --------- Layout 1 ASCII 0 Keyboard 0 Movement Mouse Keybinds 0 Fullscreen 2 Font 48/Smallcaps Map View 50x35 Zoom Use 0% Tactical HUD 1 Map Filters NONE Filters NONE Steam 0 RUN: 2e8263ad-f234-4d97-9175-ba096dd7df6c